fUST/lending_fUST_20251123
["ID","MTS","AMOUNT","RATE_DAILY","PERIOD"]
[394659281,1763832388106,-500.0,6.659e-05,2]
[394659282,1763832388136,-592.27219982,6.659e-05,2]
[394659283,1763832388170,-500.0,6.659e-05,2]
[394659284,1763832388204,-500.0,6.659e-05,2]
[394659285,1763832388232,-500.0,6.659e-05,2]
[394659286,1763832388266,-500.0,6.659e-05,2]
[394659287,1763832388295,-315.46560036,6.659e-05,2]
[394659288,1763832388649,-184.53439964,6.659e-05,2]
[394659289,1763832388688,-500.0,6.659e-05,2]
[394659290,1763832388721,-500.0,6.659e-05,2]
[394659291,1763832388757,-500.0,6.659e-05,2]
[394659292,1763832388788,-500.0,6.659e-05,2]
[394659293,1763832388824,-500.0,6.659e-05,2]
[394659294,1763832388861,-500.0,6.659e-05,2]
[394659295,1763832388891,-500.0,6.659e-05,2]
[394659296,1763832388926,-500.0,6.659e-05,2]
[394659297,1763832388957,-500.0,6.659e-05,2]
[394659298,1763832388993,-130.94120072,6.659e-05,2]
[394659299,1763832389101,-369.05879928,6.659e-05,2]
[394659300,1763832389132,-500.0,6.659e-05,2]
[394659301,1763832389168,-500.0,6.659e-05,2]
[394659302,1763832389201,-500.0,6.659e-05,2]
[394659303,1763832389236,-524.55046367,6.659e-05,2]
[394659304,1763832389269,-500.0,6.659e-05,2]
[394659305,1763832389460,-500.0,6.659e-05,2]
[394659306,1763832389496,-500.0,6.659e-05,2]
[394659307,1763832389533,-500.0,6.659e-05,2]
[394659308,1763832389568,-500.0,6.659e-05,2]
[394659309,1763832389775,-500.0,6.659e-05,2]
[394659310,1763832389810,-500.0,6.659e-05,2]
[394659311,1763832389843,-500.0,6.659e-05,2]
[394659312,1763832389878,-500.0,6.659e-05,2]
[394659313,1763832389911,-645.44796804,6.659e-05,2]
[394659314,1763832389944,-645.44796804,6.659e-05,2]
[394659315,1763832389975,-645.44796804,6.659e-05,2]
[394659316,1763832390009,-645.44796804,6.659e-05,2]
[394659317,1763832390044,-190.97828764,6.659e-05,2]
[394659318,1763832392965,-454.4696804,6.659e-05,2]
[394659319,1763832393000,-645.44796804,6.659e-05,2]
[394659320,1763832393040,-645.44796804,6.659e-05,2]
[394659321,1763832393075,-645.44796804,6.659e-05,2]
[394659322,1763832393110,-645.44796804,6.659e-05,2]
[394659323,1763832393145,-645.44796804,6.659e-05,2]
[394659324,1763832393182,-645.44796804,6.659e-05,2]
[394659325,1763832393221,-645.44796804,6.659e-05,2]
[394659326,1763832393338,-645.44796804,6.659e-05,2]
[394659327,1763832393543,-645.44796804,6.659e-05,2]
[394659328,1763832393584,-645.44796804,6.659e-05,2]
[394659329,1763832393622,-645.44796804,6.659e-05,2]
[394659330,1763832393658,-645.44796804,6.659e-05,2]
[394659331,1763832393694,-645.44796804,6.659e-05,2]
[394659332,1763832393730,-645.44796804,6.659e-05,2]
[394659333,1763832393767,-318.2904794,6.659e-05,2]
[394659334,1763832393866,-327.15748864,6.659e-05,2]
[394659335,1763832393901,-645.44796804,6.659e-05,2]
[394659336,1763832393938,-645.44796804,6.659e-05,2]
[394659337,1763832393973,-645.44796804,6.659e-05,2]
[394659338,1763832394012,-645.44796804,6.659e-05,2]
[394659339,1763832394052,-645.44796804,6.659e-05,2]
[394659340,1763832394089,-645.44796804,6.659e-05,2]
[394659341,1763832394126,-645.44796804,6.659e-05,2]
[394659342,1763832394213,-645.44796804,6.659e-05,2]
[394659343,1763832394250,-645.44796804,6.659e-05,2]
[394659344,1763832394286,-645.44796804,6.659e-05,2]
[394659345,1763832394330,-645.44796804,6.659e-05,2]
[394659346,1763832394367,-645.44796804,6.659e-05,2]
[394659347,1763832394403,-645.44796804,6.659e-05,2]
[394659348,1763832394438,-645.44796804,6.659e-05,2]
[394659349,1763832394473,-318.2904794,6.659e-05,2]
[394659350,1763832394520,-327.15748864,6.659e-05,2]
[394659351,1763832394557,-645.44796804,6.659e-05,2]
[394659352,1763832394593,-645.44796804,6.659e-05,2]
[394659353,1763832394629,-645.44796804,6.659e-05,2]
[394659354,1763832394667,-645.44796804,6.659e-05,2]
[394659355,1763832394705,-645.44796804,6.659e-05,2]
[394659356,1763832394741,-645.44796804,6.659e-05,2]
[394659357,1763832394776,-645.44796804,6.659e-05,2]
[394659358,1763832395509,-645.44796804,6.659e-05,2]
[394659359,1763832395522,-309.42347016,6.659e-05,2]
[394659360,1763832395978,-336.02449788,6.659e-05,2]
[394659361,1763832396014,-645.44796804,6.659e-05,2]
[394659362,1763832396050,-2374.6976523,6.659e-05,2]
[394659363,1763832396079,-500.0,6.659e-05,2]
[394659364,1763832396187,-2374.6976523,6.659e-05,2]
[394659365,1763832396216,-500.0,6.659e-05,2]
[394659366,1763832396252,-1875.9170431,6.659e-05,2]
[394659367,1763832396449,-498.7806092,6.659e-05,2]
[394659368,1763832396489,-2374.6976523,6.659e-05,2]
[394659369,1763832396524,-1878.3558247,6.659e-05,2]
[394659370,1763832396629,-496.3418276,6.659e-05,2]
[394659371,1763832396665,-2374.6976523,6.659e-05,2]
[394659372,1763832396699,-1883.2333879,6.659e-05,2]
[394659373,1763832397014,-491.4642644,6.659e-05,2]
[394659374,1763832397023,-909.31393886,6.659e-05,2]
[394659375,1763832397037,-1465.38371344,6.659e-05,2]
[394659376,1763832397046,-909.31393886,6.659e-05,2]
[394659377,1763832398992,-1465.38371344,6.659e-05,2]
[394659378,1763832399028,-2374.6976523,6.659e-05,2]
[394659379,1763832399082,-2319.84726852,6.659e-05,2]
[394659380,1763832399169,-54.85038378,6.659e-05,2]
[394659381,1763832399205,-2374.6976523,6.659e-05,2]
[394659382,1763832399240,-2374.6976523,6.659e-05,2]
[394659383,1763832399384,-500.0,6.659e-05,2]
[394659384,1763832399444,-391.51862324,6.659e-05,2]
[394659385,1763832399472,-9000.01,6.659e-05,2]
[394659386,1763832399486,-10000.01,6.659e-05,2]
[394659387,1763832399518,-10000.01,6.659e-05,2]
[394659388,1763832408114,-262.54977445,6.592e-05,2]
[394659389,1763832422857,155.72,1e-05,2]
[394659390,1763832423147,155.72,1.1e-05,2]
[394659391,1763832423467,155.72,1.1e-05,2]
[394659392,1763832423869,155.72,1.2e-05,2]
[394659393,1763832424157,155.72,1.2e-05,2]
[394659394,1763832424592,155.72,1.3e-05,2]
[394659395,1763832424934,155.72,1.3e-05,2]
[394659396,1763832425211,155.72,1.4e-05,2]
[394659397,1763832425509,155.72,1.4e-05,2]
[394659398,1763832425817,155.72,1.5e-05,2]
[394659399,1763832426095,155.72,1.5e-05,2]
[394659400,1763832426633,155.72,1.6e-05,2]
[394659401,1763832426916,155.72,1.6e-05,2]
[394659402,1763832427204,155.72,1.7e-05,2]
[394659403,1763832427511,155.72,1.7e-05,2]
[394659404,1763832427814,155.72,1.8e-05,2]
[394659405,1763832428116,155.72,1.8e-05,2]
[394659406,1763832428468,155.72,1.9e-05,2]
[394659407,1763832428948,155.72,1.9e-05,2]
[394659408,1763832429274,155.72,2e-05,2]
[394659409,1763832429812,155.72,2e-05,2]
[394659410,1763832429896,155.72,2.1e-05,2]
[394659411,1763832430291,155.72,2.1e-05,2]
[394659412,1763832430618,155.72,2.2e-05,2]
[394659413,1763832538563,-1731.70480823,6.461e-05,2]
[394659414,1763832538594,-1731.70480823,6.526e-05,2]
[394659415,1763832538640,-3073.19076708,6.592e-05,2]
[394659416,1763832538820,-10000.01,6.592e-05,2]
[394659417,1763832538950,-4577.69677391,6.592e-05,2]
[394659418,1763832538978,-344.61645218,6.659e-05,2]
[394659419,1763832539014,-155.38354782,6.659e-05,2]
[394659420,1763832539103,-500.0,6.659e-05,2]
[394659421,1763832539131,-500.0,6.659e-05,2]
[394659422,1763832539158,-500.0,6.659e-05,2]
[394659423,1763832539185,-500.0,6.659e-05,2]
[394659424,1763832539212,-500.0,6.659e-05,2]
[394659425,1763832539240,-500.0,6.659e-05,2]
[394659426,1763832539268,-500.0,6.659e-05,2]
[394659427,1763832539296,-500.0,6.659e-05,2]
[394659428,1763832539324,-500.0,6.659e-05,2]
[394659429,1763832539351,-500.0,6.659e-05,2]
[394659430,1763832539466,-500.0,6.659e-05,2]
[394659431,1763832539494,-500.0,6.659e-05,2]
[394659432,1763832539521,-500.0,6.659e-05,2]
[394659433,1763832539548,-500.0,6.659e-05,2]
[394659434,1763832539576,-500.0,6.659e-05,2]
[394659435,1763832539604,-370.61280891,6.659e-05,2]
[394659436,1763832539632,-500.0,6.659e-05,2]
[394659437,1763832539879,-0.01,6.66e-05,2]
[394659438,1763832539896,-3258.78438218,6.66e-05,2]
[394659439,1763832539921,-10000.01,6.66e-05,2]
[394659440,1763832539933,-10000.01,6.66e-05,2]
[394659441,1763832539953,-10000.01,6.66e-05,2]
[394659442,1763832541424,-10000.01,6.66e-05,2]
[394659443,1763832541564,-10000.01,6.66e-05,2]
[394659444,1763832542743,155.6,1e-05,2]
[394659445,1763832543031,155.6,1e-05,2]
[394659446,1763832550517,-4501.47791888,6.593e-05,2]
[394659447,1763832550557,-997.05416224,6.66e-05,2]
[394659448,1763832550621,-10000.01,6.66e-05,2]
[394659449,1763832550747,-10000.01,6.66e-05,2]
[394659450,1763832550888,-10000.01,6.66e-05,2]
[394659451,1763832551026,-10000.01,6.66e-05,2]
[394659452,1763832551150,-10000.01,6.66e-05,2]
[394659453,1763832601758,789.92,1e-05,2]
[394659454,1763832602084,789.92,1e-05,2]
[394659455,1763832602429,789.92,1.1e-05,2]
[394659456,1763832602777,789.92,1.1e-05,2]
[394659457,1763832603105,789.92,1.1e-05,2]
[394659458,1763832603148,6649.8423837,5e-05,2]
[394659459,1763832603395,789.92,1.1e-05,2]
[394659460,1763832603671,789.92,1.2e-05,2]
[394659461,1763832603987,789.92,1.2e-05,2]
[394659462,1763832604274,789.92,1.2e-05,2]
[394659463,1763832604561,789.92,1.2e-05,2]
[394659464,1763832604851,789.92,1.3e-05,2]
[394659465,1763832605153,789.92,1.3e-05,2]
[394659466,1763832605467,789.92,1.3e-05,2]
[394659467,1763832606148,789.92,1.3e-05,2]
[394659468,1763832606298,789.92,1.4e-05,2]
[394659469,1763832606484,789.92,1.4e-05,2]
[394659470,1763832606780,789.92,1.4e-05,2]
[394659471,1763832607083,789.92,1.4e-05,2]
[394659472,1763832607383,789.92,1.5e-05,2]
[394659473,1763832607840,789.92,1.5e-05,2]
[394659474,1763832608179,789.92,1.5e-05,2]
[394659475,1763832608508,789.92,1.5e-05,2]
[394659476,1763832608781,789.92,1.6e-05,2]
[394659477,1763832609407,789.92,1.6e-05,2]
[394659478,1763832609563,789.92,1.6e-05,2]
[394659479,1763832609955,789.92,1.6e-05,2]
[394659480,1763832610350,789.92,1.7e-05,2]
[394659481,1763832610651,789.92,1.7e-05,2]
[394659482,1763832610915,789.92,1.7e-05,2]
[394659483,1763832611179,789.92,1.7e-05,2]
[394659484,1763832611468,789.92,1.8e-05,2]
[394659485,1763832611790,789.92,1.8e-05,2]
[394659486,1763832612112,789.92,1.8e-05,2]
[394659487,1763832612452,789.92,1.8e-05,2]
[394659488,1763832612779,789.92,1.9e-05,2]
[394659489,1763832613048,789.92,1.9e-05,2]
[394659490,1763832614018,789.92,1.9e-05,2]
[394659491,1763832614357,789.92,1.9e-05,2]
[394659492,1763832614661,789.92,2e-05,2]
[394659493,1763832615008,789.92,2e-05,2]
[394659494,1763832615362,789.92,2e-05,2]
[394659495,1763832615620,789.92,2e-05,2]
[394659496,1763832615906,789.92,2.1e-05,2]
[394659497,1763832616387,789.92,2.1e-05,2]
[394659498,1763832616531,789.92,2.1e-05,2]
[394659499,1763832617003,789.92,2.1e-05,2]
[394659500,1763832617262,789.92,2.2e-05,2]
[394659501,1763832617549,789.92,2.2e-05,2]
[394659502,1763832617829,789.92,2.2e-05,2]
[394659564,1763832632087,-264.2175,6.462e-05,2]
[394659566,1763832632098,-1569.0426496,6.462e-05,2]
[394659567,1763832632107,-210.0,6.526e-05,2]
[394659568,1763832632118,-150.0,6.526e-05,2]
[394659570,1763832632128,-300.0,6.526e-05,2]
[394659571,1763832632137,-184.73280246,6.526e-05,2]
[394659573,1763832632149,-1015.26719754,6.526e-05,2]
[394659574,1763832632158,-1169.62548098,6.527e-05,2]
[394659575,1763832632207,-13986.53364526,6.527e-05,2]
[394659576,1763832632216,-15348.54498479,6.593e-05,2]
[394659577,1763832632225,-500.0,6.633e-05,2]
[394659579,1763832632234,-4423.68595428,6.66e-05,2]
[394659581,1763832632245,-2373.43354247,6.66e-05,2]
[394659589,1763832638077,-778946.93195883,6.66e-05,2]
[394659590,1763832638086,-8564.6772463,6.761e-05,2]
[394659591,1763832638096,-880.86236809,6.761e-05,2]
[394659592,1763832638106,-300.0,6.893e-05,2]
[394659593,1763832638115,-300.0,6.893e-05,2]
[394659594,1763832638125,-300.0,6.893e-05,2]
[394659595,1763832638134,-300.0,6.893e-05,2]
[394659596,1763832638144,-300.0,6.893e-05,2]
[394659597,1763832638153,-300.0,6.893e-05,2]
[394659598,1763832638162,-300.0,6.893e-05,2]
[394659599,1763832638172,-300.0,6.893e-05,2]
[394659600,1763832638181,-300.0,6.893e-05,2]
[394659602,1763832638191,-300.0,6.893e-05,2]
[394659603,1763832638200,-300.0,6.893e-05,2]
[394659604,1763832638209,-300.0,6.893e-05,2]
[394659605,1763832638219,-300.0,6.893e-05,2]
[394659606,1763832638228,-300.0,6.893e-05,2]
[394659607,1763832638239,-300.0,6.893e-05,2]
[394659608,1763832638248,-600.0,6.894e-05,2]
[394659609,1763832638257,-1000.0,7.181e-05,2]
[394659610,1763832638267,-8564.6772463,7.52e-05,2]
[394659611,1763832638276,-720.0,7.583e-05,2]
[394659612,1763832638285,-500.0,7.667e-05,2]
[394659613,1763832638295,-1500.0,7.728e-05,2]
[394659614,1763832638304,-194.28646153,7.928e-05,2]
[394659615,1763832638313,-1000.0,8.215e-05,2]
[394659616,1763832638322,-511.7139966,8.219e-05,2]
[394659617,1763832638332,-8564.6772463,8.278e-05,2]
[394659618,1763832638341,-864.0,8.342e-05,2]
[394659619,1763832638351,-177.0,8.658e-05,2]
[394659620,1763832638360,-1500.0,8.763e-05,2]
[394659621,1763832638370,-8564.6772463,9.037e-05,2]
[394659622,1763832638379,-1000.0,9.176e-05,2]
[394659623,1763832638389,-1351.37085115,9.311e-05,2]
[394659624,1763832638401,-1000.0,0.0001,2]
[394659625,1763832638410,-526.81769141,0.0001,2]
[394659626,1763832638420,-50000.0,0.0001,2]
[394659627,1763832638430,-1000.0,0.00010094,2]
[394659628,1763832638439,-244.0,0.00010094,2]
[394659629,1763832638450,-204.0,0.00010658,2]
[394659630,1763832638460,-150.0,0.00010675,2]
[394659631,1763832638470,-414.0,0.0001073,2]
[394659632,1763832638482,-999.0,0.00010959,2]
[394659633,1763832638492,-1000.0,0.00011103,2]
[394659634,1763832638501,-492.0,0.00011103,2]
[394659635,1763832638511,-1000.0,0.00012213,2]
[394659636,1763832638521,-791.0,0.00012213,2]
[394659637,1763832638530,-353.21105852,0.00012619,2]
[394659638,1763832638540,-160.0,0.00012638,2]
[394659639,1763832638549,-231.0,0.00012658,2]
[394659640,1763832638558,-5859.41022382,0.000129,2]
[394659641,1763832638567,-5859.41022377,0.000129,2]
[394659642,1763832638577,-1000.0,0.00013434,2]
[394659643,1763832638587,-1000.0,0.00013434,2]
[394659644,1763832638596,-150.0,0.00013675,2]
[394659645,1763832638608,-1000.0,0.00013699,2]
[394659646,1763832638618,-1171.466459,0.00013699,2]
[394659647,1763832638628,-250.0006268,0.00013699,2]
[394659648,1763832638637,-500.0,0.00013699,2]
[394659649,1763832638648,-414.0,0.0001373,2]
[394659650,1763832638657,-249.768,0.00014384,2]
[394659651,1763832638667,-151.0,0.000146,2]
[394659652,1763832638676,-258.0,0.00014658,2]
[394659653,1763832638686,-1000.0,0.00014778,2]
[394659654,1763832638695,-1000.0,0.00014778,2]
[394659655,1763832638704,-579.0,0.00014778,2]
[394659656,1763832638714,-100000.0,0.00015028,2]
[394659657,1763832638723,-5859.41022377,0.00015387,2]
[394659658,1763832638732,-800.0,0.00016,2]
[394659659,1763832638742,-500.0,0.00016118,2]
[394659660,1763832638752,-500.0,0.00016118,2]
[394659661,1763832638762,-500.0,0.00016118,2]
[394659662,1763832638772,-1000.0,0.00016256,2]
[394659663,1763832638782,-1000.0,0.00016256,2]
[394659664,1763832638792,-1000.0,0.00016256,2]
[394659665,1763832638802,-500.0,0.00016438,2]
[394659666,1763832638811,-285.0,0.00016658,2]
[394659667,1763832638821,-1000.0,0.00016666,2]
[394659668,1763832638831,-1000.0,0.00016666,2]
[394659669,1763832638841,-150.0,0.00016675,2]
[394659670,1763832638851,-414.0,0.0001673,2]
[394659671,1763832638861,-226.41895428,0.000169,2]
[394659672,1763832638871,-961.91491625,0.000169,2]
[394659673,1763832638880,-162.48267814,0.000169,2]
[394659674,1763832638901,-371.91449755,0.000169,2]
[394659675,1763832638911,-177.39844837,0.000169,2]
[394659676,1763832638920,-150.72885323,0.00016983,2]
[394659677,1763832638930,-602.91541291,0.00016983,2]
[394659678,1763832638939,-1356.55967904,0.00016983,2]
[394659679,1763832638948,-625.6274054,0.00016983,2]
[394659680,1763832638960,-76.10165772,0.00016983,2]
[394659681,1763832638969,-310.40834228,0.00016983,2]
[394659682,1763832638980,-952.70397133,0.00016983,2]
[394659683,1763832638990,-2245.53300198,0.00016983,2]
[394659684,1763832639000,-1504.27148774,0.00017214,2]
[394659685,1763832639009,-1500.0,0.00017214,2]
[394659686,1763832639019,-150.0,0.0001729,2]
[394659687,1763832639029,-500.0,0.00017534,2]
[394659688,1763832639038,-2000.0,0.00017762,2]
[394659689,1763832639048,-1000.0,0.00017881,2]
[394659690,1763832639058,-1000.0,0.00017881,2]
[394659691,1763832639067,-1000.0,0.00017881,2]
[394659692,1763832639076,-715.0,0.00017881,2]
[394659693,1763832639085,-2221.86488111,0.0001831,2]
[394659694,1763832639095,-500.0,0.0001863,2]
[394659695,1763832639105,-15969.62495243,0.00018633,3]
[394659696,1763832639114,-312.0,0.00018658,2]
[394659697,1763832639124,-150.0,0.00018861,2]
[394659698,1763832639133,-198.60743013,0.0001903,2]
[394659699,1763832639142,-793.63529081,0.0001903,2]
[394659700,1763832639152,-396.27052976,0.0001903,2]
[394659701,1763832639162,-1583.49703693,0.0001903,2]
[394659702,1763832639171,-170.0,0.00019288,3]
[394659703,1763832639181,-500.0,0.0001945,2]
[394659704,1763832639191,-2000.0,0.000195,2]
[394659705,1763832639200,-1000.0,0.00019669,10]
[394659706,1763832639209,-1000.0,0.00019669,10]
[394659707,1763832639219,-1000.0,0.00019669,10]
[394659708,1763832639228,-500.0,0.00019726,2]
[394659709,1763832639237,-5859.41022377,0.000198,2]
[394659710,1763832639247,-162.74059804,0.00019913,2]
[394659711,1763832639256,-1500.0,0.0002,2]
[394659712,1763832639266,-500.0,0.0002,2]
[394659713,1763832639275,-500.0,0.00020062,2]
[394659714,1763832639285,-194.28646153,0.00020135,2]
[394659715,1763832639295,-1171.466459,0.00020187,2]
[394659716,1763832639305,-180.0,0.00020384,3]
[394659717,1763832639314,-500.0,0.00020401,2]
[394659718,1763832639323,-2000.0,0.000205,2]
[394659719,1763832639332,-500.0,0.00020591,2]
[394659720,1763832639341,-500.0,0.00020821,2]
[394659721,1763832639351,-17058.57419949,0.0002101,2]
[394659722,1763832639360,-703.44271993,0.00021086,7]
[394659723,1763832639369,-500.0,0.00021282,2]
[394659724,1763832639379,-323.5,0.00021348,15]
[394659725,1763832639389,-168.0,0.00021389,2]
[394659726,1763832639400,-168.0,0.00021474,2]
[394659727,1763832639410,-168.0,0.00021492,2]
[394659728,1763832639420,-1160.0,0.000215,2]
[394659729,1763832639430,-168.0,0.00021899,2]
[394659730,1763832639441,-500.0,0.00021917,2]
[394659731,1763832639451,-500.0,0.00021973,2]
[394659732,1763832639460,-500.0,0.00021973,2]
[394659733,1763832639470,-300.0,0.00021973,2]
[394659734,1763832639479,-260.84412833,0.00021973,2]
[394659735,1763832639488,-377.346323,0.0002199,7]
[394659736,1763832639498,-377.346323,0.0002199,7]
[394659737,1763832639507,-377.346323,0.0002199,7]
[394659738,1763832639516,-377.346323,0.0002199,7]
[394659739,1763832639526,-200.0,0.00021999,2]
[394659740,1763832639535,-200.0,0.00021999,2]
[394659741,1763832639544,-652.5115481,0.00022,5]
[394659742,1763832639553,-8413.70174935,0.00022,2]
[394659757,1763832640264,-1134.10636665,6.593e-05,2]
[394659758,1763832640274,-414.0,0.0001973,2]
[394659759,1763832640283,-213643.90825065,0.00022,2]
[394659760,1763832640292,-377.346323,0.00022,7]
[394659761,1763832640301,-377.346323,0.00022,7]
[394659762,1763832640310,-377.346323,0.00022,7]
[394659763,1763832640318,-377.346323,0.00022,7]
[394659764,1763832640327,-151.0,0.00022,7]
[394659765,1763832640336,-460.0,0.00022,2]
[394659766,1763832640345,-162.33171358,0.00022004,56]
[394659767,1763832640355,-182.0,0.00022027,6]
[394659768,1763832640364,-209.42414702,0.00022036,56]
[394659769,1763832640373,-168.0,0.00022069,2]
[394659770,1763832640382,-500.0,0.00022137,2]
[394659771,1763832640391,-500.0,0.00022141,2]
[394659772,1763832640404,-202.72092053,0.00022157,30]
[394659773,1763832640413,-171.73981926,0.00022157,30]
[394659774,1763832640422,-460.0,0.00022192,7]
[394659775,1763832640431,-202.72092056,0.00022259,30]
[394659776,1763832640442,-162.33171358,0.000223,74]
[394659777,1763832640450,-603.67632084,0.000225,2]
[394659778,1763832640459,-503.63911693,0.00022521,2]
[394659779,1763832640468,-162.33171358,0.00022596,92]
[394659780,1763832640479,-168.0,0.00022717,2]
[394659781,1763832640488,-414.0,0.0002273,2]
[394659782,1763832640497,-168.0,0.00022745,2]
[394659783,1763832640506,-162.33171358,0.00022893,110]
[394659784,1763832640515,-1605.8,0.000229,7]
[394659785,1763832640524,-166.67,0.000229,14]
[394659786,1763832640533,-209.42414702,0.00022927,110]
[394659787,1763832640542,-500.0,0.00023013,2]
[394659788,1763832640551,-460.0,0.00023014,7]
[394659789,1763832640560,-217.58358662,0.00023099,2]
[394659790,1763832640569,-39655.72667211,0.000231,2]
[394659791,1763832640896,-2e-08,0.000231,2]
[394659872,1763832644906,-216.69170525,0.0002199,10]
[394659976,1763832646184,-17410.00000004,0.0002199,10]
[394659977,1763832646294,-823.72127738,0.0002199,10]
[394659978,1763832661853,157.96,1e-05,2]
[394659979,1763832662123,157.96,1.3e-05,2]
[394659980,1763832663061,157.96,1.6e-05,2]
[394659981,1763832663480,157.96,1.9e-05,2]
[394659982,1763832663757,157.96,2.3e-05,2]
[394659983,1763832814144,-300.0,6.558e-05,2]
[394659984,1763832814169,-283.87986581,6.559e-05,2]
[394659985,1763832829143,-292.64124251,6.559e-05,2]
[394659986,1763832830721,-720.52378724,6.559e-05,2]
[394659987,1763832833441,-300.0,6.559e-05,2]
[394659988,1763832836132,-195.61550192,6.559e-05,2]
[394659989,1763833010117,-2431.41999467,6.493e-05,2]
[394659990,1763833010147,-633.03929366,6.493e-05,2]
[394659993,1763833354713,-167.00221049,6.533e-05,2]
[394659994,1763833356897,-205.09303632,6.533e-05,2]
[394659995,1763833359613,-127.90475319,6.533e-05,2]
[394659996,1763833359637,-64.7663945,6.533e-05,2]
[394659997,1763833360831,-228.82068515,6.533e-05,2]
[394659998,1763833384161,-206.41292035,6.533e-05,2]
[394659999,1763833384185,-199.28081843,6.554e-05,2]
[394660000,1763833386304,-282.57982742,6.554e-05,2]
[394660001,1763833472019,182.82746958,6.553e-05,2]
[394660002,1763833472049,500.0,6.553e-05,2]
[394660003,1763833473036,500.0,6.553e-05,2]
[394660004,1763833473210,188.51072808,6.553e-05,2]
[394660005,1763833473328,154.83203798,6.553e-05,2]
[394660006,1763833473625,500.0,6.553e-05,2]
[394660007,1763833473670,500.0,6.553e-05,2]
[394660008,1763833473710,500.0,6.553e-05,2]
[394660009,1763833473744,500.0,6.553e-05,2]
[394660010,1763833473798,500.0,6.553e-05,2]
[394660011,1763833473842,500.0,6.553e-05,2]
[394660012,1763833473876,500.0,6.553e-05,2]
[394660013,1763833473923,500.0,6.553e-05,2]
[394660014,1763833473963,561.21222717,6.553e-05,2]
[394660015,1763833473995,500.0,6.553e-05,2]
[394660016,1763833474036,500.0,6.553e-05,2]
[394660017,1763833474084,500.0,6.553e-05,2]
[394660018,1763833474125,500.0,6.553e-05,2]
[394660019,1763833474180,500.0,6.553e-05,2]
[394660020,1763833474234,500.0,6.553e-05,2]
[394660021,1763833474270,500.0,6.553e-05,2]
[394660022,1763833474316,412.62753719,6.553e-05,2]
[394660023,1763833474340,87.37246281,6.553e-05,2]
[394660024,1763833474377,500.0,6.553e-05,2]
[394660025,1763833474412,500.0,6.553e-05,2]
[394660026,1763833474446,500.0,6.553e-05,2]
[394660027,1763833474484,500.0,6.553e-05,2]
[394660028,1763833474520,500.0,6.553e-05,2]
[394660029,1763833474556,500.0,6.553e-05,2]
[394660030,1763833474595,500.0,6.553e-05,2]
[394660031,1763833474837,500.0,6.553e-05,2]
[394660032,1763833474875,500.0,6.553e-05,2]
[394660033,1763833474908,500.0,6.553e-05,2]
[394660034,1763833474950,500.0,6.553e-05,2]
[394660035,1763833474983,500.0,6.553e-05,2]
[394660036,1763833475020,500.0,6.553e-05,2]
[394660037,1763833475062,500.0,6.553e-05,2]
[394660038,1763833475109,500.0,6.553e-05,2]
[394660039,1763833475149,500.0,6.553e-05,2]
[394660040,1763833475227,500.0,6.553e-05,2]
[394660041,1763833475264,500.0,6.553e-05,2]
[394660042,1763833475302,500.0,6.553e-05,2]
[394660043,1763833475341,172.30039731,6.553e-05,2]
[394660044,1763833492158,500.0,6.553e-05,2]
[394660045,1763833492209,500.0,6.553e-05,2]
[394660046,1763833492262,184.56347514,6.553e-05,2]
[394660047,1763833496970,-1200.0,6.555e-05,2]
[394660053,1763833510431,500.0,6.553e-05,2]
[394660054,1763833512163,-484.0,6.558e-05,2]
[394660062,1763833516985,2881.54235452,6.553e-05,2]
[394660063,1763833517025,2881.54235452,6.553e-05,2]
[394660064,1763833517067,2881.54235452,6.553e-05,2]
[394660065,1763833517107,387.38293644,6.553e-05,2]